fUSD/lending_fUSD_20240715
["ID","MTS","AMOUNT","RATE_DAILY","PERIOD"]
[332178207,1721008232183,-181.61,0.00012415,2]
[332178208,1721008232192,-227.47,0.00012417,2]
[332178209,1721008232201,-250.0,0.0001243,2]
[332178210,1721008232212,-250.0,0.00012439,2]
[332178211,1721008232222,-1000.0,0.0001251,2]
[332178212,1721008232231,-521.17,0.0001251,2]
[332178213,1721008232240,-4238.55,0.0001251,2]
[332178214,1721008232249,-499.99,0.00012644,2]
[332178216,1721008232258,-179.31,0.00012649,2]
[332178218,1721008232267,-168.73,0.00012712,2]
[332178219,1721008232276,-7697.44,0.00012712,2]
[332178220,1721008232285,-597.79,0.0001278,2]
[332178221,1721008232293,-178.28,0.00012854,2]
[332178222,1721008232303,-1250.0,0.00013,2]
[332178223,1721008232313,-2744.96984544,0.00013082,2]
[332178224,1721008232321,-355.33,0.00013119,2]
[332178225,1721008232330,-355.33,0.00013119,2]
[332178226,1721008232339,-355.33,0.00013119,2]
[332178227,1721008232349,-154.479845,0.00013265,2]
[332178228,1721008232358,-358.22,0.00013378,2]
[332178229,1721008232367,-2052.0,0.00013448,2]
[332178230,1721008232377,-1140.90031224,0.00013452,2]
[332178231,1721008232386,-1056.4639937,0.00013472,2]
[332178232,1721008232395,-424.85,0.00013478,2]
[332178234,1721008232405,-16976.007,0.00013516,2]
[332178236,1721008232414,-155.0,0.00013516,2]
[332178237,1721008232423,-155.0,0.00013543,2]
[332178238,1721008232432,-154.479845,0.00013596,2]
[332178240,1721008232442,-200.0,0.00013699,2]
[332178242,1721008232451,-239.72,0.00013699,2]
[332178244,1721008232461,-250.0,0.00013699,2]
[332178245,1721008232473,-1905.42,0.00013699,2]
[332178246,1721008232483,-169.17,0.00013699,5]
[332178247,1721008232492,-3589.27,0.00013699,2]
[332178248,1721008232501,-12787.35591521,0.00013736,2]
[332178249,1721008232511,-652.97405074,0.00013759,2]
[332178250,1721008232520,-150.33,0.00013759,2]
[332178251,1721008232530,-150.0,0.00013759,2]
[332178252,1721008232543,-150.0,0.00013759,2]
[332178253,1721008232554,-175.84076054,0.00013799,2]
[332178254,1721008232566,-2248.7602,0.000138,2]
[332178255,1721008232578,-211.0698,0.000138,2]
[332178256,1721008232589,-192.378,0.000138,2]
[332178257,1721008232600,-164.50372214,0.000138,2]
[332178258,1721008232610,-182.3213235,0.00013802,2]
[332178259,1721008232620,-164.50372211,0.00013825,2]
[332178260,1721008232630,-521.34144675,0.00013849,2]
[332178261,1721008232642,-5.10456605,0.0001385,2]
[332178262,1721008232655,-159.39915606,0.0001385,2]
[332178263,1721008232665,-164.50372211,0.00013875,2]
[332178264,1721008232676,-476.09712183,0.00013889,3]
[332178265,1721008232690,-110.72287817,0.00013889,3]
[332178266,1721008232701,-192.75731267,0.0001389,2]
[332178267,1721008232712,-360.0002273,0.0001389,3]
[332178268,1721008232723,-195.6,0.0001389,3]
[332178269,1721008232733,-221.47,0.0001389,2]
[332178270,1721008232744,-192.75731265,0.00013895,2]
[332178271,1721008232755,-1490.536,0.00013899,2]
[332178272,1721008232766,-500.0,0.00013899,2]
[332178273,1721008232777,-203.24773708,0.00013899,2]
[332178274,1721008232788,-240.69498303,0.00013899,2]
[332178275,1721008232798,-217.46848566,0.00013899,2]
[332178276,1721008232808,-276.86949704,0.00013899,2]
[332178277,1721008232819,-500.0,0.00013899,2]
[332178278,1721008232829,-153.47395293,0.00013899,2]
[332178279,1721008232839,-500.0,0.00013899,2]
[332178280,1721008232854,-293.73516813,0.00013899,2]
[332178281,1721008232866,-188.12083136,0.00013899,2]
[332178282,1721008232877,-211.78119138,0.00013899,2]
[332178283,1721008232887,-500.0,0.00013899,2]
[332178284,1721008232899,-500.0,0.00013899,2]
[332178285,1721008232909,-190.7644126,0.00013899,2]
[332178286,1721008232921,-309.2355874,0.00013899,2]
[332178287,1721008232934,-500.0,0.00013899,2]
[332178288,1721008232945,-237.7644126,0.00013899,2]
[332178289,1721008232958,-262.2355874,0.00013899,2]
[332178290,1721008232969,-309.93694218,0.00013899,2]
[332178291,1721008232980,-327.81747042,0.00013899,2]
[332178292,1721008232994,-172.18252958,0.00013899,2]
[332178293,1721008233005,-513.17724063,0.00013899,2]
[332178294,1721008233016,-323.38884102,0.00013899,2]
[332178295,1721008233027,-252.98351647,0.00013899,2]
[332178296,1721008233038,-500.0,0.00013899,2]
[332178297,1721008233050,-163.7451039,0.00013899,2]
[332178298,1721008233061,-597.94943393,0.00013899,2]
[332178299,1721008233073,-528.55867962,0.00013899,2]
[332178300,1721008233084,-632.01180864,0.00013899,2]
[332178301,1721008233096,-207.90636771,0.00013899,2]
[332178302,1721008233106,-545.89093436,0.00013899,2]
[332178303,1721008233116,-370.57302607,0.00013899,2]
[332178304,1721008233126,-511.66608875,0.00013899,2]
[332178305,1721008233135,-508.49742575,0.00013899,2]
[332178306,1721008233145,-172.66861532,0.00013899,2]
[332178307,1721008233155,-500.0,0.00013899,2]
[332178308,1721008233166,-213.97778235,0.00013899,2]
[332178309,1721008233177,-191.43007794,0.00013899,2]
[332178310,1721008233189,-500.0,0.00013899,2]
[332178311,1721008233200,-502.21345552,0.00013899,2]
[332178312,1721008233211,-527.917015,0.00013899,2]
[332178313,1721008233221,-500.0,0.00013899,2]
[332178314,1721008233231,-514.9707499,0.00013899,2]
[332178315,1721008233242,-1932.83,0.00013899,2]
[332178316,1721008233253,-500.0,0.00013899,2]
[332178317,1721008233264,-511.98,0.00013899,2]
[332178318,1721008233274,-505.11209775,0.00013899,2]
[332178319,1721008233286,-504.05874693,0.00013899,2]
[332178320,1721008233298,-247.74224549,0.00013899,2]
[332178321,1721008233308,-178.72383181,0.00013899,2]
[332178322,1721008233317,-281.68762755,0.00013899,2]
[332178323,1721008233328,-500.81509159,0.00013899,2]
[332178324,1721008233338,-1594.85,0.00013899,2]
[332178325,1721008233348,-519.32016709,0.00013899,2]
[332178326,1721008233358,-178.6910335,0.00013899,2]
[332178327,1721008233368,-500.0,0.00013899,2]
[332178328,1721008233380,-500.0,0.00013899,2]
[332178329,1721008233390,-12675.2208,0.000139,2]
[332178330,1721008233400,-1000.0,0.000139,2]
[332178331,1721008233410,-1000.0,0.000139,2]
[332178332,1721008233420,-242049.7984,0.000139,2]
[332178333,1721008233431,-175.4111786,0.000139,2]
[332178334,1721008233441,-437.13341294,0.000139,2]
[332178335,1721008233452,-204.00431831,0.000139,2]
[332178336,1721008233463,-192.75731265,0.000139,2]
[332178337,1721008233474,-164.50372211,0.000139,2]
[332178338,1721008233484,-154.479845,0.00013928,2]
[332178339,1721008233497,-355.33,0.00013941,2]
[332178340,1721008233507,-355.33,0.00013941,2]
[332178341,1721008233518,-355.33,0.00013941,2]
[332178342,1721008233529,-504.1557522,0.00013954,2]
[332178343,1721008233539,-500.0,0.00013954,2]
[332178344,1721008233550,-500.0,0.00013954,2]
[332178345,1721008233561,-500.0,0.00013954,2]
[332178346,1721008233572,-191.58697844,0.00013954,2]
[332178347,1721008233583,-182.96721933,0.00013954,2]
[332178348,1721008233593,-500.0,0.00013954,2]
[332178349,1721008233604,-431.74035677,0.00013954,2]
[332178350,1721008233615,-500.0,0.00013954,2]
[332178351,1721008233626,-500.0,0.00013954,2]
[332178352,1721008233637,-500.0,0.00013954,2]
[332178353,1721008233647,-500.0,0.00013954,2]
[332178354,1721008233658,-500.0,0.00013954,2]
[332178355,1721008233668,-1932.83,0.00013954,2]
[332178356,1721008233679,-191.31901295,0.00013954,2]
[332178357,1721008233690,-511.98,0.00013954,2]
[332178358,1721008233700,-1594.85,0.00013954,2]
[332178359,1721008233710,-581.23299688,0.00013954,2]
[332178360,1721008233721,-215.33167079,0.00013954,2]
[332178361,1721008233732,-180.00011365,0.00013963,3]
[332178362,1721008233742,-634.31,0.00013973,5]
[332178363,1721008233753,-360.0002273,0.0001398,3]
[332178364,1721008233764,-501.69939677,0.00013989,2]
[332178365,1721008233775,-512.57606987,0.00013989,2]
[332178366,1721008233785,-502.05027406,0.00013989,2]
[332178367,1721008233796,-502.13603538,0.00013989,2]
[332178368,1721008233807,-511.15588419,0.00013989,2]
[332178369,1721008233817,-500.0,0.00013989,2]
[332178370,1721008233828,-179.59766038,0.00013989,2]
[332178371,1721008233838,-500.0,0.00013989,2]
[332178372,1721008233853,-212.86089037,0.00013989,2]
[332178373,1721008233863,-508.43557511,0.00013989,2]
[332178374,1721008233874,-2528.18716618,0.00013989,3]
[332178375,1721008233884,-505.13495754,0.00013989,2]
[332178376,1721008233896,-507.79317379,0.00013989,2]
[332178377,1721008233907,-504.56730024,0.00013989,2]
[332178378,1721008233917,-500.0,0.00013989,2]
[332178379,1721008233929,-219.98630502,0.00013989,2]
[332178380,1721008233939,-500.0,0.00013989,2]
[332178381,1721008233949,-193.60513736,0.00013989,2]
[332178382,1721008233959,-500.0,0.00013989,2]
[332178383,1721008233973,-504.49716203,0.00013989,2]
[332178384,1721008233983,-500.0,0.00013989,2]
[332178385,1721008233994,-500.0,0.00013989,2]
[332178386,1721008234005,-505.24945556,0.00013989,2]
[332178387,1721008234015,-500.0,0.00013989,2]
[332178388,1721008234026,-514.1280704,0.00013989,2]
[332178389,1721008234037,-504.38838711,0.00013989,2]
[332178390,1721008234047,-504.55769227,0.00013989,2]
[332178391,1721008234058,-515.19324064,0.00013989,2]
[332178392,1721008234068,-507.15669356,0.00013989,2]
[332178393,1721008234078,-500.0,0.00013989,2]
[332178394,1721008234089,-611.61906366,0.00013989,2]
[332178395,1721008234099,-504.8462854,0.00013989,2]
[332178396,1721008234110,-564.52551016,0.00013989,2]
[332178397,1721008234120,-492.50328394,0.00013989,2]
[332178398,1721008234130,-500.0,0.00013989,2]
[332178399,1721008234141,-500.0,0.00013989,2]
[332178400,1721008234151,-179.9438745,0.00013989,2]
[332178401,1721008234161,-508.48205811,0.00013989,2]
[332178402,1721008234172,-504.07934674,0.00013989,2]
[332178403,1721008234183,-503.57806376,0.00013989,2]
[332178404,1721008234193,-502.25027243,0.00013989,2]
[332178405,1721008234203,-505.73576026,0.00013989,2]
[332178406,1721008234214,-202.59039483,0.00013989,3]
[332178407,1721008234225,-200.31515958,0.0001399,2]
[332178408,1721008234235,-4193.06350497,0.00013999,2]
[332178409,1721008234246,-501.07094447,0.00013999,2]
[332178410,1721008234256,-624.72259941,0.00013999,2]
[332178411,1721008234267,-501.26598941,0.00013999,2]
[332178412,1721008234278,-501.69592871,0.00013999,2]
[332178413,1721008234288,-501.64805166,0.00013999,2]
[332178414,1721008234298,-501.10453932,0.00013999,2]
[332178415,1721008234309,-150.0,0.00013999,2]
[332178416,1721008234319,-500.0,0.00013999,2]
[332178417,1721008234329,-503.97122898,0.00013999,2]
[332178418,1721008234339,-500.0,0.00013999,2]
[332178419,1721008234350,-516.97818528,0.00013999,2]
[332178420,1721008234359,-304.91564525,0.00013999,2]
[332178421,1721008234370,-500.0,0.00013999,2]
[332178422,1721008234380,-500.0,0.00013999,2]
[332178423,1721008234391,-500.0,0.00013999,2]
[332178424,1721008234401,-500.0,0.00013999,2]
[332178425,1721008234411,-500.0,0.00013999,2]
[332178426,1721008234421,-510.41805384,0.00013999,2]
[332178427,1721008234431,-500.0,0.00013999,2]
[332178428,1721008234441,-289.88519418,0.00013999,2]
[332178429,1721008234452,-500.0,0.00013999,2]
[332178430,1721008234462,-500.0,0.00013999,2]
[332178431,1721008234472,-461.50071818,0.00013999,2]
[332178432,1721008234482,-500.0,0.00013999,2]
[332178433,1721008234492,-500.0,0.00013999,2]
[332178434,1721008234503,-500.0,0.00013999,2]
[332178435,1721008234513,-500.0,0.00013999,2]
[332178436,1721008234524,-500.64505076,0.00013999,2]
[332178437,1721008234535,-500.0,0.00013999,2]
[332178438,1721008234545,-507.73714524,0.00013999,2]
[332178439,1721008234555,-178.349112,0.00013999,2]
[332178440,1721008234566,-281.30987212,0.00013999,2]
[332178441,1721008234576,-392755.18119918,0.00014,2]
[332178442,1721008234587,-542.0,0.00014,2]
[332178443,1721008234598,-365243.32126329,0.00014,2]
[332178444,1721008235073,-1047.7158435,0.00014,2]
[332178449,1721008238067,-19644.89,0.00012367,2]
[332178450,1721008238076,-175.84076053,0.000139,2]
[332178451,1721008238086,-408180.6328807,0.00014,2]
[332178452,1721008238097,-1072.50233623,0.00014,2]
[332178453,1721008238108,-7015.537408,0.00014,2]
[332178454,1721008238119,-1969.22712928,0.00014,2]
[332178455,1721008238130,-4795.42269386,0.00014,2]
[332178456,1721008238141,-296.71721676,0.00014,2]
[332178457,1721008238152,-655.82000289,0.00014,2]
[332178458,1721008238163,-4693.17062681,0.00014,2]
[332178459,1721008238575,-1654.53650654,0.00014,2]
[332178460,1721008238586,-667.76472037,0.00014,2]
[332178461,1721008238597,-326.82220256,0.00014,2]
[332178509,1721008240187,-339.39748413,0.00013889,2]
[332178510,1721008240197,-2871.41502712,0.00014,2]
[332178511,1721008240209,-938.35073009,0.00014,2]
[332178512,1721008240221,-770.54761456,0.00014,2]
[332178514,1721008240586,-705.80073488,0.00014,2]
[332178515,1721008240598,-9921.4047672,0.00014,2]
[332178516,1721008240610,-1239.40000052,0.00014,2]
[332178517,1721008240621,-6703.93307108,0.00014,2]
[332178518,1721008240632,-620.67185021,0.00014,2]
[332178519,1721008240643,-12945.27415203,0.00014,2]
[332178520,1721008240655,-12475.69382756,0.00014,2]
[332178521,1721008240666,-850.24946448,0.00014,2]
[332178641,1721008243057,-31445.4474969,0.00014,2]
[332178668,1721008243229,-482.00237009,0.00013999,2]
[332178670,1721008243240,-305.20127118,0.00013999,2]
[332178672,1721008243251,-394.2293526,0.00013999,2]
[332178674,1721008243262,-615.97963061,0.00013999,2]
[332178691,1721008243415,-1338.63429709,0.00013999,2]
[332178693,1721008243424,-1683.97048761,0.00014,2]
[332178695,1721008243435,-583.3171608,0.00014,2]
[332178697,1721008243445,-636.87818,0.00014,2]
[332178700,1721008243457,-2396.5336603,0.00014,2]
[332178702,1721008243468,-392.29490377,0.00014,2]
[332178704,1721008243482,-4229.51550703,0.00014,2]
[332178706,1721008243493,-614.57,0.00014,2]
[332178709,1721008243506,-1093.93961604,0.00014,2]
[332178711,1721008243517,-346.16649608,0.00014,2]
[332178936,1721008246018,-440.64598425,0.000138,2]
[332178960,1721008246233,-803.33940501,0.000138,2]
[332178963,1721008246245,-1947.99141509,0.000138,2]
[332178965,1721008246255,-653390.88182372,0.00014,2]
[332178967,1721008246266,-16994.01969472,0.00014,2]
[332178969,1721008246277,-27466.2388339,0.00014,2]
[332178971,1721008246288,-1595.25934319,0.00014,2]
[332178973,1721008246300,-269.38241397,0.00014,2]
[332178988,1721008246430,-857.89395934,0.00014,2]
[332178990,1721008246441,-572.85,0.00014,2]
[332178992,1721008246452,-3278.93484286,0.00014,2]
[332178994,1721008246463,-1563.91,0.00014,2]
[332178997,1721008246476,-500.0,0.00014,2]
[332178999,1721008246487,-3549.65847356,0.00014,2]
[332179239,1721008457370,666.0,0.00027,120]
[332179240,1721008458858,267.74499163,0.00025,60]
[332179242,1721008525710,157.07151,0.00025,66]
[332179243,1721008532516,157.07151,0.00025,67]
[332179244,1721008535738,157.07151,0.00025,68]
[332179245,1721008542717,157.07151,0.00025,69]
[332179247,1721008552506,157.07151,0.00025,73]
[332179248,1721008555714,157.07151,0.00025,74]
[332179249,1721008561834,157.07151,0.00025,75]
[332179250,1721008565050,690.7,0.00018849,30]
[332179251,1721008589444,250.07151,0.00027,120]
[332179252,1721008597409,8618.09,0.00027,120]
[332179253,1721008643263,1056.37581438,0.0001,2]
[332179254,1721008704604,181.39244222,0.0001,2]
[332179255,1721008706272,155.0,0.0001,2]
[332179256,1721008709775,8403.81686181,0.0001,2]
[332179257,1721008710346,18806.76171158,0.0001,2]
[332179258,1721008715457,1416.28398383,0.0001,2]
[332179259,1721008719363,262.85324745,0.0001,2]
[332179260,1721008722501,155.87546048,0.0001,2]
[332179261,1721008722823,6317.44330565,0.0001,2]
[332179262,1721008727833,412.17001752,0.0001,2]
[332179263,1721008763619,1500.0,0.0002221,30]
[332179264,1721008802610,181.15516436,0.0001,2]
[332179265,1721008804783,179.79239444,0.0001,2]
[332179266,1721008822386,551.10537977,0.0002221,45]
[332179268,1721008915392,284.80444288,0.0002221,45]
[332179271,1721009116825,633.14,0.00018849,30]
[332179273,1721009148635,1177.92,0.00027,120]
[332179279,1721009313901,510.0,0.00026027,120]
[332179280,1721009314199,510.0,0.00026301,120]
[332179281,1721009314471,510.0,0.00026575,120]
[332179282,1721009314756,510.0,0.00026849,120]
[332179287,1721009432194,-603.78,0.0001057,2]
[332179289,1721009432203,-150.0,0.00011097,2]
[332179291,1721009432214,-300.0,0.00011097,2]
[332179293,1721009432224,-2522.55943408,0.00011098,2]
[332179295,1721009432234,-255.86333765,0.00011098,2]
[332179297,1721009432242,-365.35228203,0.00011098,2]
[332179298,1721009432253,-177.87689466,0.00011098,2]
[332179299,1721009432262,-78.11998299,0.00011098,2]
[332179303,1721009432406,-268.81462398,0.00011098,2]
[332179304,1721009432415,-158.59726727,0.00011098,2]
[332179305,1721009432425,-155.18178909,0.00011098,2]
[332179306,1721009432434,-406.47418189,0.00011098,2]
[332179307,1721009432443,-196.78440994,0.00011098,2]
[332179308,1721009432452,-155.0,0.00011098,2]
[332179309,1721009432461,-2212.50695962,0.00011098,2]
[332179310,1721009432472,-633.06148188,0.00011098,2]
[332179311,1721009432481,-426.40755812,0.00011098,2]
[332179312,1721009432492,-1962.98013801,0.00011098,2]
[332179313,1721009432501,-691.88678279,0.00011197,2]
[332179314,1721009432510,-1552.19671833,0.00012121,2]
[332179315,1721009433666,-1757.27645808,0.00011098,2]
[332179316,1721009433678,-632.76552221,0.00011098,2]
[332179317,1721009433690,-412.81053676,0.00011098,2]
[332179318,1721009433702,-7604.47297998,0.00011098,2]
[332179319,1721009433713,-19836.89329569,0.00011098,2]
[332179320,1721009433722,-1945.63989349,0.00012121,2]
[332179321,1721009433959,-25.95366558,0.00012121,2]
[332179322,1721009433969,-420.0,0.00012193,2]
[332179323,1721009433978,-155.0,0.00012273,2]
[332179324,1721009433986,-155.48476222,0.00012273,2]
[332179325,1721009433996,-1322.90276768,0.00012302,2]
[332179326,1721009434005,-198.53916864,0.00012314,2]
[332179327,1721009434013,-250.0,0.00012471,2]
[332179328,1721009434022,-2442.75,0.00012535,2]
[332179329,1721009434031,-179.32,0.0001255,2]
[332179330,1721009434040,-1054.17,0.0001255,2]
[332179331,1721009434049,-250.0,0.00012566,2]
[332179332,1721009434058,-765.27,0.00012597,2]
[332179333,1721009434070,-299.99,0.00012597,2]
[332179334,1721009434078,-1000.0,0.00012631,2]
[332179335,1721009434087,-350.33,0.00012631,2]
[332179336,1721009434095,-7490.92099598,0.00012688,2]
[332179338,1721009434105,-1022.77900402,0.00012688,2]
[332179340,1721009434113,-6.01099598,0.00012834,2]
[332179342,1721009434123,-597.76900402,0.00012834,2]
[332179344,1721009434131,-402.0197173,0.00012918,2]
[332179346,1721009434141,-459.91623121,0.00012918,2]
[332179348,1721009434152,-3183.92946526,0.00012918,2]
[332179350,1721009434162,-781.72744129,0.00012918,2]
[332179352,1721009434172,-3018.95867372,0.00012918,2]
[332179374,1721009438185,-453.76335471,0.00012918,2]
[332179376,1721009438196,-149.68511651,0.00012918,2]
[332179377,1721009438206,-183.9,0.00012974,2]
[332179378,1721009438218,-354.91488349,0.00013,2]
[332179379,1721009438469,-895.08511651,0.00013,2]
[332179380,1721009438479,-168.75,0.00013052,2]
[332179381,1721009438489,-601.72833348,0.00013053,2]
[332179382,1721009438499,-214.340616,0.00013265,2]
[332179383,1721009438508,-440.66,0.000133,2]
[332179384,1721009438517,-500.78804779,0.00013398,2]
[332179385,1721009438528,-86.21195221,0.00013398,2]
[332179386,1721009438539,-164.22026852,0.00013472,2]
[332179387,1721009438548,-194.1735439,0.00013472,2]
[332179388,1721009438558,-199.50897922,0.00013516,2]
[332179389,1721009438569,-1136.70475368,0.00013516,2]
[332179390,1721009438578,-66.62043047,0.00013516,2]
[332179391,1721009438589,-989.38905049,0.00013516,2]
[332179392,1721009438599,-600.0,0.00013597,2]
[332179393,1721009438609,-250.0,0.00013699,2]
[332179394,1721009438618,-502.98,0.00013699,5]
[332179395,1721009438627,-200.0,0.00013699,2]
[332179396,1721009438637,-347.12,0.00013699,2]
[332179397,1721009438647,-182.20492629,0.00013799,2]
[332179398,1721009438656,-965.122,0.000138,2]
[332179399,1721009438665,-289.9511,0.000138,2]
[332179400,1721009438676,-1074.89976219,0.000138,2]
[332179401,1721009438685,-314.346,0.000138,2]
[332179402,1721009438695,-368.69702676,0.00013802,2]
[332179403,1721009438705,-155.80727413,0.00013849,2]
[332179404,1721009438714,-5100.80443964,0.00013878,2]
[332179406,1721009438723,-200.0,0.00013888,2]
[332179425,1721009438913,-155.0,0.00013889,2]
[332179427,1721009438924,-439.12822285,0.00013889,2]
[332179428,1721009438934,-725.31161165,0.00013889,2]
[332179429,1721009438944,-203.96964799,0.00013889,2]
[332179430,1721009438956,-449.89668828,0.00013889,2]
[332179431,1721009438965,-261.05356172,0.00013889,2]
[332179432,1721009438977,-29.13652344,0.00013889,2]
[332179433,1721009438986,-4043.2369,0.0001389,2]
[332179434,1721009438995,-190.4052,0.0001389,2]
[332179435,1721009439005,-500.0,0.00013899,2]
[332179436,1721009439014,-508.5,0.00013899,2]
[332179437,1721009439023,-500.0,0.00013899,2]
[332179438,1721009439033,-500.0,0.00013899,2]
[332179439,1721009439042,-500.0,0.00013899,2]
[332179440,1721009439051,-500.0,0.00013899,2]
[332179441,1721009439060,-169.83217228,0.00013899,2]
[332179442,1721009439071,-699.78507593,0.00013899,2]
[332179443,1721009439080,-155.17013277,0.00013899,2]
[332179444,1721009439089,-169.83217224,0.00013899,2]
[332179445,1721009439099,-169.83217224,0.00013899,2]
[332179446,1721009439108,-169.83217224,0.000139,2]
[332179447,1721009439117,-93.65931522,0.000139,2]
[332179448,1721009439128,-76.17285702,0.000139,2]
[332179449,1721009439138,-1000.0,0.000139,2]
[332179450,1721009439147,-3029.8715,0.000139,2]
[332179451,1721009439156,-384.76697756,0.000139,2]
[332179452,1721009439165,-198.46920995,0.000139,2]
[332179453,1721009439175,-169.83217224,0.000139,2]
[332179454,1721009439184,-2546.84744417,0.000139,2]
[332179455,1721009439194,-831.45239475,0.000139,2]
[332179456,1721009439204,-214.340616,0.00013928,2]
[332179457,1721009439217,-500.0,0.00013954,2]
[332179458,1721009439226,-500.0,0.00013954,2]
[332179459,1721009439236,-500.0,0.00013954,2]
[332179460,1721009439246,-500.0,0.00013954,2]
[332179461,1721009439255,-500.0,0.00013954,2]
[332179462,1721009439264,-391.2,0.00013989,3]
[332179463,1721009439273,-272.7682413,0.00013989,2]
[332179464,1721009439283,-500.0,0.00013989,2]
[332179465,1721009439293,-500.0,0.00013989,2]
[332179466,1721009439302,-500.0,0.00013989,2]
[332179467,1721009439312,-500.0,0.00013989,2]
[332179468,1721009439321,-159.82697759,0.00013989,2]
[332179469,1721009439330,-500.0,0.00013989,2]
[332179470,1721009439340,-430.43651526,0.00013989,2]
[332179471,1721009439349,-170.10311747,0.00013989,2]
[332179472,1721009439358,-203.90828717,0.00013989,2]
[332179473,1721009439367,-505.57622652,0.00013989,2]
[332179474,1721009439376,-1872.16,0.00013989,2]
[332179475,1721009439386,-248.67689959,0.00013989,2]
[332179476,1721009439395,-500.0,0.00013989,2]
[332179477,1721009439404,-500.0,0.00013989,2]
[332179478,1721009439413,-173.64921438,0.00013989,2]
[332179479,1721009439423,-150.47550401,0.00013989,2]
[332179480,1721009439432,-394.20442299,0.00013989,2]
[332179481,1721009439441,-500.0,0.00013989,2]
[332179482,1721009439451,-404.17561522,0.00013989,2]
[332179483,1721009439462,-209.73223726,0.00013989,2]
[332179484,1721009439471,-238.42493571,0.00013989,2]
[332179485,1721009439480,-174.98304739,0.00013989,2]
[332179486,1721009439490,-271.33748021,0.00013989,2]
[332179487,1721009439499,-81.08816093,0.00013989,2]
[332179488,1721009439510,-1448.57183907,0.00013989,2]
[332179489,1721009439519,-198.39625256,0.0001399,2]
[332179490,1721009439528,-1558.67567072,0.00013999,2]
[332179491,1721009439538,-247.50848597,0.00013999,2]
[332179492,1721009439549,-256.85292897,0.00013999,2]
[332179493,1721009439558,-150.0,0.00013999,2]
[332179494,1721009439567,-500.0,0.00013999,2]
[332179495,1721009439576,-305.62211861,0.00013999,2]
[332179496,1721009439585,-500.0,0.00013999,2]
[332179497,1721009439594,-500.0,0.00013999,2]
[332179498,1721009439603,-500.0,0.00013999,2]
[332179499,1721009439613,-500.0,0.00013999,2]
[332179500,1721009439622,-500.0,0.00013999,2]
[332179501,1721009439631,-500.0,0.00013999,2]
[332179502,1721009439640,-301.41526356,0.00013999,2]
[332179503,1721009439649,-500.0,0.00013999,2]
[332179504,1721009439658,-438.64235137,0.00013999,2]
[332179505,1721009439667,-488.01451067,0.00013999,2]
[332179506,1721009439675,-580.03853425,0.00013999,2]
[332179507,1721009439684,-208.65975967,0.00013999,2]
[332179508,1721009439697,-291.34024033,0.00013999,2]
[332179509,1721009439706,-294.07796791,0.00013999,2]
[332179510,1721009439717,-205.92203209,0.00013999,2]
[332179511,1721009439726,-224.38502261,0.00013999,2]
[332179512,1721009439737,-199.85534722,0.00013999,2]
[332179513,1721009439747,-198.79293296,0.00013999,2]
[332179514,1721009439758,-146.561085,0.00013999,2]
[332179515,1721009439767,-443.56094674,0.00013999,2]
[332179516,1721009439778,-56.43905326,0.00013999,2]
[332179517,1721009439788,-500.0,0.00013999,2]
[332179518,1721009439797,-606.93244432,0.00013999,2]
[332179519,1721009439806,-500.0,0.00013999,2]
[332179520,1721009439816,-500.0,0.00013999,2]
[332179521,1721009439825,-305.03374806,0.00013999,2]
[332179522,1721009439835,-500.0,0.00013999,2]
[332179523,1721009439844,-326.20986833,0.00013999,2]
[332179524,1721009439853,-500.0,0.00013999,2]
[332179525,1721009439862,-500.0,0.00013999,2]
[332179526,1721009439871,-605.39750799,0.00013999,2]